fUSD/lending_fUSD_20251006
["ID","MTS","AMOUNT","RATE_DAILY","PERIOD"]
[389549026,1759709501622,-1300.38,0.00016438,2]
[389549027,1759709501631,-500.0,0.00016438,2]
[389549028,1759709501641,-500.0,0.00016438,2]
[389549029,1759709501650,-1300.38,0.00016438,2]
[389549030,1759709501659,-500.0,0.00016438,2]
[389549031,1759709501668,-151.0,0.00016438,2]
[389549032,1759709501677,-1050.036148,0.00016438,2]
[389549033,1759709501687,-500.0,0.00016438,2]
[389549034,1759709501696,-1300.38,0.00016438,2]
[389549035,1759709501705,-500.0,0.00016438,2]
[389549036,1759709501715,-500.0,0.00016438,2]
[389549037,1759709501723,-1300.38,0.00016438,2]
[389549038,1759709501733,-500.0,0.00016438,2]
[389549039,1759709501743,-550.85,0.00016438,2]
[389549040,1759709501753,-1300.38,0.00016438,2]
[389549041,1759709501762,-4539.996259,0.00016438,2]
[389549042,1759709501771,-500.0,0.00016438,2]
[389549043,1759709501780,-1300.38,0.00016438,2]
[389549044,1759709501790,-500.0,0.00016438,2]
[389549045,1759709501799,-1300.38,0.00016438,2]
[389549046,1759709501812,-500.0,0.00016438,2]
[389549047,1759709501821,-1300.38,0.00016438,2]
[389549048,1759709501831,-500.0,0.00016438,2]
[389549049,1759709501840,-1300.38,0.00016438,2]
[389549050,1759709501850,-500.0,0.00016438,2]
[389549051,1759709501859,-1050.036148,0.00016438,2]
[389549052,1759709501869,-1300.38,0.00016438,2]
[389549053,1759709501878,-500.0,0.00016438,2]
[389549054,1759709501888,-1300.38,0.00016438,2]
[389549055,1759709501897,-500.0,0.00016438,2]
[389549056,1759709501907,-482.316072,0.00016438,2]
[389549057,1759709501916,-4539.996256,0.00016438,2]
[389549058,1759709501926,-1300.38,0.00016438,2]
[389549059,1759709501935,-1300.38,0.00016438,2]
[389549060,1759709501944,-495.63912454,0.00016438,2]
[389549061,1759709501954,-1300.38,0.00016438,2]
[389549062,1759709501964,-210.341422,0.00016438,2]
[389549063,1759709501973,-1300.38,0.00016438,2]
[389549064,1759709501982,-1050.036139,0.00016438,2]
[389549065,1759709501991,-1300.38,0.00016438,2]
[389549066,1759709502001,-1300.38,0.00016438,2]
[389549067,1759709502011,-482.316072,0.00016438,2]
[389549068,1759709502021,-1300.38,0.00016438,2]
[389549069,1759709502034,-1300.38,0.00016438,2]
[389549070,1759709502043,-151.0,0.00016438,2]
[389549071,1759709502052,-1300.38,0.00016438,2]
[389549072,1759709502062,-1300.50406987,0.00016438,2]
[389549073,1759709502073,-510.16,0.00016438,2]
[389549074,1759709502082,-510.16,0.00016438,2]
[389549075,1759709502091,-482.316072,0.00016438,2]
[389549076,1759709502102,-510.16,0.00016438,2]
[389549077,1759709502111,-510.16,0.00016438,2]
[389549078,1759709502120,-510.16,0.00016438,2]
[389549079,1759709502130,-510.16,0.00016438,2]
[389549080,1759709502139,-510.16,0.00016438,2]
[389549081,1759709502149,-510.16,0.00016438,2]
[389549082,1759709502159,-482.316072,0.00016438,2]
[389549083,1759709502168,-151.0,0.00016438,2]
[389549084,1759709502177,-510.16,0.00016438,2]
[389549085,1759709502187,-510.16,0.00016438,2]
[389549086,1759709502196,-19674.25025219,0.00016438,4]
[389549087,1759709502206,-2186.02780579,0.00016438,4]
[389549088,1759709502215,-659.23,0.00016438,2]
[389549089,1759709502224,-1000.0,0.00016438,2]
[389549090,1759709502235,-300.0,0.00016438,2]
[389549091,1759709502244,-5911.05,0.00016438,2]
[389549092,1759709502254,-1000.0,0.00016438,2]
[389549093,1759709502264,-210.765642,0.00016438,2]
[389549094,1759709502272,-210.765642,0.00016438,2]
[389549095,1759709502280,-210.765642,0.00016438,2]
[389549096,1759709502290,-210.765642,0.00016438,2]
[389549097,1759709502299,-210.765642,0.00016438,2]
[389549098,1759709502308,-210.765642,0.00016438,2]
[389549099,1759709502317,-210.765642,0.00016438,2]
[389549100,1759709502326,-210.765642,0.00016438,2]
[389549101,1759709502335,-210.765642,0.00016438,2]
[389549102,1759709502345,-210.765642,0.00016438,2]
[389549103,1759709502354,-210.765642,0.00016438,2]
[389549104,1759709502363,-210.765642,0.00016438,2]
[389549105,1759709502373,-210.765642,0.00016438,2]
[389549106,1759709502382,-210.765642,0.00016438,2]
[389549107,1759709502392,-210.765642,0.00016438,2]
[389549108,1759709502401,-210.765642,0.00016438,2]
[389549109,1759709502410,-826.787336,0.00016438,2]
[389549110,1759709502419,-210.765642,0.00016438,2]
[389549111,1759709502428,-210.765642,0.00016438,2]
[389549112,1759709502437,-826.787336,0.00016438,2]
[389549113,1759709502446,-210.765642,0.00016438,2]
[389549114,1759709502455,-826.787336,0.00016438,2]
[389549115,1759709502464,-210.765643,0.00016438,2]
[389549116,1759709502473,-826.787336,0.00016438,2]
[389549117,1759709502482,-826.787336,0.00016438,2]
[389549118,1759709502491,-826.787336,0.00016438,2]
[389549119,1759709502500,-826.787336,0.00016438,2]
[389549120,1759709502509,-826.787336,0.00016438,2]
[389549121,1759709502518,-826.787336,0.00016438,2]
[389549122,1759709502527,-826.787336,0.00016438,2]
[389549123,1759709502536,-826.787336,0.00016438,2]
[389549124,1759709502546,-826.787336,0.00016438,2]
[389549125,1759709502555,-826.787336,0.00016438,2]
[389549126,1759709502564,-826.787336,0.00016438,2]
[389549127,1759709502573,-826.787336,0.00016438,2]
[389549128,1759709502582,-826.787336,0.00016438,2]
[389549129,1759709502591,-826.787336,0.00016438,2]
[389549130,1759709502600,-826.787336,0.00016438,2]
[389549131,1759709502610,-826.787336,0.00016438,2]
[389549132,1759709502618,-826.78734,0.00016438,2]
[389549133,1759709502628,-500.0,0.00016438,2]
[389549134,1759709502637,-150.4,0.00016442,2]
[389549135,1759709502646,-500.0,0.00016444,2]
[389549136,1759709502655,-199.83410364,0.00016473,2]
[389549137,1759709502664,-319.30901849,0.00016485,30]
[389549138,1759709502673,-152.0,0.00016498,5]
[389549139,1759709502683,-307.15974455,0.00016512,9]
[389549140,1759709502692,-500.0,0.00016518,2]
[389549141,1759709502701,-500.0,0.00016527,2]
[389549142,1759709502710,-300.0,0.00016589,2]
[389549143,1759709502718,-300.0,0.00016589,2]
[389549144,1759709502727,-300.0,0.00016589,2]
[389549145,1759709502736,-179.56025321,0.00016589,2]
[389549146,1759709502745,-300.0,0.00016589,2]
[389549147,1759709502754,-300.0,0.00016589,2]
[389549148,1759709502763,-300.0,0.00016589,2]
[389549149,1759709502771,-300.0,0.00016589,2]
[389549150,1759709502780,-300.0,0.00016589,2]
[389549151,1759709502789,-300.0,0.00016589,2]
[389549152,1759709502798,-300.0,0.00016589,2]
[389549153,1759709502807,-300.0,0.00016589,2]
[389549154,1759709502815,-300.0,0.00016589,2]
[389549155,1759709502823,-300.0,0.00016589,2]
[389549156,1759709502832,-300.0,0.00016589,2]
[389549157,1759709502842,-231991.12438893,0.0001659,2]
[389549158,1759709502850,-986.3309,0.00016599,2]
[389549159,1759709502859,-355.11872648,0.000166,2]
[389549160,1759709502868,-2000.0,0.00016616,2]
[389549161,1759709502878,-2000.0,0.00016616,2]
[389549162,1759709502888,-1500.0,0.00016616,2]
[389549163,1759709502897,-2000.0,0.00016616,2]
[389549164,1759709502907,-2000.0,0.00016616,2]
[389549165,1759709502916,-2000.0,0.00016616,2]
[389549166,1759709502926,-2000.0,0.00016616,2]
[389549167,1759709502935,-2000.0,0.00016616,2]
[389549168,1759709502944,-1813.79590649,0.00016616,2]
[389549169,1759709502954,-1232.46628265,0.00016616,2]
[389549170,1759709502963,-2000.0,0.00016616,2]
[389549171,1759709502973,-973.0,0.00016618,2]
[389549172,1759709502982,-722.0,0.00016618,2]
[389549173,1759709502991,-2946.0,0.00016618,2]
[389549174,1759709503001,-500.0,0.00016618,2]
[389549175,1759709503010,-1591.0,0.00016618,2]
[389549176,1759709503019,-500.0,0.00016618,2]
[389549177,1759709503031,-500.0,0.00016618,2]
[389549178,1759709503042,-919.0,0.00016618,2]
[389549179,1759709503052,-659.0,0.00016618,2]
[389549180,1759709503062,-500.0,0.00016618,2]
[389549181,1759709503073,-684.88353223,0.00016618,2]
[389549182,1759709503081,-2314.59287872,0.00016637,2]
[389549183,1759709503089,-2271.5297734,0.00016677,2]
[389549184,1759709503098,-6004.7292835,0.00016677,2]
[389549185,1759709503110,-6175.747586,0.00016677,2]
[389549186,1759709503119,-563.0,0.00016709,2]
[389549187,1759709503129,-500.0,0.00016709,2]
[389549188,1759709503138,-150.0,0.00016712,2]
[389549189,1759709503148,-150.0,0.00016712,2]
[389549190,1759709503157,-500.0,0.00016712,2]
[389549191,1759709503340,-163.0,0.00016712,2]
[389549192,1759709503350,-700.0,0.0001677,2]
[389549193,1759709503359,-185.83,0.00016778,2]
[389549194,1759709503369,-500.0,0.00016792,2]
[389549195,1759709503378,-159.45993987,0.00016792,2]
[389549196,1759709503388,-248.71531821,0.00016797,2]
[389549197,1759709503397,-4900.0,0.000168,2]
[389549198,1759709503406,-2495.6239,0.000168,2]
[389549199,1759709503415,-230.0,0.00016803,2]
[389549200,1759709503425,-1600.0,0.00016813,2]
[389549201,1759709503434,-307.15974455,0.00016842,10]
[389549202,1759709503445,-185.83,0.00016879,2]
[389549203,1759709503454,-973.0,0.00016892,2]
[389549204,1759709503464,-722.0,0.00016892,2]
[389549205,1759709503473,-2946.0,0.00016892,2]
[389549206,1759709503483,-500.0,0.00016892,2]
[389549207,1759709503492,-1591.0,0.00016892,2]
[389549208,1759709503502,-500.0,0.00016892,2]
[389549209,1759709503511,-203.19012935,0.00016892,2]
[389549210,1759709503520,-919.0,0.00016892,2]
[389549211,1759709503530,-659.0,0.00016892,2]
[389549212,1759709503539,-500.0,0.00016892,2]
[389549213,1759709503549,-152.0,0.00016943,6]
[389549214,1759709503558,-2500.0,0.00016964,2]
[389549215,1759709503567,-1598.57400629,0.00016964,2]
[389549216,1759709503576,-563.0,0.00016983,2]
[389549217,1759709503586,-500.0,0.00016983,2]
[389549218,1759709503595,-500.0,0.00016986,2]
[389549219,1759709503605,-300.0,0.00016999,2]
[389549220,1759709503614,-300.0,0.00016999,2]
[389549221,1759709503623,-300.0,0.00016999,2]
[389549222,1759709503632,-300.0,0.00016999,2]
[389549223,1759709503641,-300.0,0.00016999,2]
[389549224,1759709503651,-300.0,0.00016999,2]
[389549225,1759709503660,-300.0,0.00016999,2]
[389549226,1759709503669,-300.0,0.00016999,2]
[389549227,1759709503678,-300.0,0.00016999,2]
[389549228,1759709503687,-300.0,0.00016999,2]
[389549229,1759709503697,-300.0,0.00016999,2]
[389549230,1759709503706,-300.0,0.00016999,2]
[389549231,1759709503715,-4000.0,0.00017,2]
[389549232,1759709503724,-200.0,0.00017,2]
[389549233,1759709503733,-400.0,0.00017,2]
[389549234,1759709503742,-400.0,0.00017,2]
[389549235,1759709503751,-400.0,0.00017,2]
[389549236,1759709503759,-400.0,0.00017,2]
[389549237,1759709503768,-400.0,0.00017,2]
[389549238,1759709503777,-400.0,0.00017,2]
[389549239,1759709503786,-400.0,0.00017,2]
[389549240,1759709503795,-400.0,0.00017,2]
[389549241,1759709503804,-400.0,0.00017,2]
[389549242,1759709503813,-400.0,0.00017,2]
[389549243,1759709503822,-400.0,0.00017,2]
[389549244,1759709503831,-400.0,0.00017,2]
[389549245,1759709503840,-400.0,0.00017,2]
[389549246,1759709503849,-400.0,0.00017,2]
[389549247,1759709503858,-400.0,0.00017,2]
[389549248,1759709503869,-400.0,0.00017,2]
[389549249,1759709503878,-400.0,0.00017,2]
[389549250,1759709503892,-400.0,0.00017,2]
[389549251,1759709503902,-400.0,0.00017,2]
[389549252,1759709503911,-400.0,0.00017,2]
[389549253,1759709503920,-400.0,0.00017,2]
[389549254,1759709503929,-400.0,0.00017,2]
[389549255,1759709503938,-400.0,0.00017,2]
[389549256,1759709503947,-400.0,0.00017,2]
[389549257,1759709503957,-400.0,0.00017,2]
[389549258,1759709503966,-400.0,0.00017,2]
[389549259,1759709503975,-222.22335466,0.00017,2]
[389549260,1759709503984,-12500.0,0.00017,2]
[389549261,1759709503993,-250.0,0.00017,2]
[389549262,1759709504002,-15000.0,0.00017,2]
[389549263,1759709504011,-25000.0,0.00017,2]
[389549264,1759709504020,-10000.0,0.00017,2]
[389549265,1759709504034,-22500.0,0.00017,2]
[389549266,1759709504043,-10000.0,0.00017,2]
[389549267,1759709504052,-10000.0,0.00017,2]
[389549268,1759709504060,-10000.0,0.00017,2]
[389549269,1759709504071,-15000.0,0.0001703,2]
[389549270,1759709504080,-12500.0,0.00017038,2]
[389549271,1759709504089,-22500.0,0.00017038,2]
[389549272,1759709504099,-22500.0,0.00017038,2]
[389549273,1759709504108,-15000.0,0.0001706,2]
[389549274,1759709504117,-15000.0,0.0001706,2]
[389549275,1759709504126,-500.0,0.00017066,2]
[389549276,1759709504135,-300.0,0.00017074,2]
[389549277,1759709504145,-300.0,0.00017074,2]
[389549278,1759709504154,-300.0,0.00017074,2]
[389549279,1759709504163,-300.0,0.00017074,2]
[389549280,1759709504173,-300.0,0.00017074,2]
[389549281,1759709504182,-300.0,0.00017074,2]
[389549282,1759709504191,-338.10136942,0.00017074,2]
[389549283,1759709504201,-300.0,0.00017074,2]
[389549284,1759709504210,-12500.0,0.00017075,2]
[389549285,1759709504219,-25000.0,0.00017075,2]
[389549286,1759709504228,-22500.0,0.00017075,2]
[389549287,1759709504237,-22500.0,0.00017075,2]
[389549288,1759709504246,-15000.0,0.0001709,2]
[389549289,1759709504255,-15000.0,0.0001709,2]
[389549290,1759709504264,-162.3050877,0.00017095,2]
[389549291,1759709504273,-506.8468021,0.00017097,2]
[389549292,1759709504282,-1339.8362066,0.00017097,2]
[389549293,1759709504291,-1377.9955479,0.00017097,2]
[389549294,1759709504301,-1758.91,0.000171,2]
[389549295,1759709504310,-10000.0,0.000171,2]
[389549296,1759709504319,-10000.0,0.000171,2]
[389549297,1759709504328,-12500.0,0.00017113,2]
[389549298,1759709504337,-22500.0,0.00017113,2]
[389549299,1759709504346,-12734.83,0.00017113,2]
[389549300,1759709504355,-15000.0,0.0001712,2]
[389549301,1759709504364,-15000.0,0.0001712,2]
[389549302,1759709504373,-300.0,0.00017149,2]
[389549303,1759709504382,-300.0,0.00017149,2]
[389549304,1759709504391,-300.0,0.00017149,2]
[389549305,1759709504400,-300.0,0.00017149,2]
[389549306,1759709504409,-300.0,0.00017149,2]
[389549307,1759709504418,-300.0,0.00017149,2]
[389549308,1759709504427,-300.0,0.00017149,2]
[389549309,1759709504436,-300.0,0.00017149,2]
[389549310,1759709504445,-12500.0,0.0001715,2]
[389549311,1759709504453,-15000.0,0.0001715,2]
[389549312,1759709504462,-15000.0,0.0001715,2]
[389549313,1759709504471,-25000.0,0.0001715,2]
[389549314,1759709504480,-22500.0,0.0001715,2]
[389549315,1759709504488,-7151.280739,0.00017157,2]
[389549316,1759709504497,-222.041799,0.00017157,2]
[389549317,1759709504506,-156.113302,0.00017157,2]
[389549318,1759709504515,-151.392137,0.00017157,2]
[389549319,1759709504525,-258.689018,0.00017157,2]
[389549320,1759709504534,-218.558623,0.00017157,2]
[389549321,1759709504543,-1772.167099,0.00017157,2]
[389549322,1759709504551,-3544.334198,0.00017157,2]
[389549323,1759709504561,-637.706817,0.00017157,2]
[389549324,1759709504570,-2500.0,0.00017164,2]
[389549325,1759709504579,-1500.0,0.00017164,2]
[389549326,1759709504588,-1916.42263089,0.00017164,2]
[389549327,1759709504597,-2504.53157012,0.00017164,2]
[389549328,1759709504606,-2500.0,0.00017164,2]
[389549329,1759709504616,-990.84432511,0.00017164,2]
[389549330,1759709504625,-2500.0,0.00017164,2]
[389549331,1759709504634,-896.3532373,0.00017164,2]
[389549332,1759709504643,-973.0,0.00017166,2]
[389549333,1759709504652,-722.0,0.00017166,2]
[389549334,1759709504662,-2946.0,0.00017166,2]
[389549335,1759709504671,-500.0,0.00017166,2]
[389549336,1759709504681,-1591.0,0.00017166,2]
[389549337,1759709504690,-500.0,0.00017166,2]
[389549338,1759709504699,-919.0,0.00017166,2]
[389549339,1759709504708,-659.0,0.00017166,2]
[389549340,1759709504718,-500.0,0.00017166,2]
[389549341,1759709504727,-307.15974455,0.00017171,12]
[389549342,1759709504736,-15000.0,0.0001718,2]
[389549343,1759709504745,-15000.0,0.0001718,2]
[389549344,1759709504754,-12500.0,0.00017188,2]
[389549345,1759709504763,-22500.0,0.00017188,2]
[389549346,1759709504772,-150.4,0.00017189,2]
[389549347,1759709504782,-9999.99,0.000172,2]
[389549348,1759709504790,-9999.99,0.000172,2]
[389549349,1759709504799,-15000.0,0.0001721,2]
[389549350,1759709504808,-13283.66,0.0001721,2]
[389549351,1759709504818,-2000.0,0.00017216,2]
[389549352,1759709504827,-346.92554585,0.00017221,2]
[389549353,1759709504837,-12500.0,0.00017225,2]
[389549354,1759709504846,-9438.0,0.00017225,2]
[389549355,1759709504855,-22500.0,0.00017225,2]
[389549356,1759709504865,-15000.0,0.0001724,2]
[389549357,1759709504874,-563.0,0.00017257,2]
[389549358,1759709504884,-500.0,0.00017257,2]
[389549359,1759709504893,-500.0,0.0001726,2]
[389549360,1759709504903,-713.90648272,0.0001726,2]
[389549361,1759709504912,-12500.0,0.00017263,2]
[389549362,1759709504922,-22500.0,0.00017263,2]
[389549363,1759709504931,-15000.0,0.0001727,2]
[389549364,1759709504941,-300.0,0.00017279,2]
[389549365,1759709504950,-300.0,0.00017279,2]
[389549366,1759709504959,-300.0,0.00017279,2]
[389549367,1759709504968,-300.0,0.00017279,2]
[389549368,1759709504977,-300.0,0.00017279,2]
[389549369,1759709504986,-300.0,0.00017279,2]
[389549370,1759709504995,-300.0,0.00017279,2]
[389549371,1759709505005,-300.0,0.00017279,2]
[389549372,1759709505014,-97918.2489303,0.0001728,7]
[389549373,1759709505024,-681.34804713,0.0001728,7]
[389549374,1759709505038,-2000.0,0.000173,2]
[389549375,1759709505048,-12500.0,0.000173,2]
[389549376,1759709505057,-15000.0,0.000173,2]
[389549377,1759709505066,-22500.0,0.000173,2]
[389549378,1759709505077,-370.65517587,0.000173,7]
[389549379,1759709505087,-310.46545092,0.00017309,30]
[389549380,1759709505097,-1622.22,0.00017311,2]
[389549381,1759709505106,-473.94,0.00017311,2]
[389549382,1759709505116,-473.94,0.00017311,2]
[389549383,1759709505125,-807.55,0.00017311,2]
[389549384,1759709505134,-807.55,0.00017311,2]
[389549385,1759709505144,-947.73,0.00017311,2]
[389549386,1759709505153,-473.94,0.00017311,2]
[389549387,1759709505163,-645.35,0.00017311,2]
[389549388,1759709505172,-15000.0,0.0001733,2]
[389549389,1759709505181,-12500.0,0.00017338,2]
[389549390,1759709505191,-22500.0,0.00017338,2]
[389549391,1759709505200,-500.0,0.0001734,2]
[389549392,1759709505209,-150.0,0.0001734,2]
[389549393,1759709505218,-150.0,0.0001734,2]
[389549394,1759709505228,-150.0,0.0001734,2]
[389549395,1759709505237,-348.11,0.0001734,2]
[389549396,1759709505246,-15000.0,0.0001736,2]
[389549397,1759709505255,-12500.0,0.00017375,2]
[389549398,1759709505265,-22500.0,0.00017375,2]
[389549399,1759709505275,-152.0,0.00017388,7]
[389549400,1759709505285,-15000.0,0.0001739,2]
[389549401,1759709505294,-222.041799,0.000174,3]
[389549402,1759709505304,-7151.280739,0.000174,3]
[389549403,1759709505315,-151.392137,0.000174,3]
[389549404,1759709505325,-156.113302,0.000174,3]
[389549405,1759709505335,-258.689018,0.000174,3]
[389549406,1759709505345,-218.558623,0.000174,3]
[389549407,1759709505354,-1772.167099,0.000174,3]
[389549408,1759709505367,-3544.334198,0.000174,3]
[389549409,1759709505376,-637.706817,0.000174,3]
[389549410,1759709505386,-12500.0,0.00017413,2]
[389549411,1759709505397,-22500.0,0.00017413,2]
[389549412,1759709505406,-15000.0,0.0001742,2]
[389549413,1759709505415,-973.0,0.0001744,2]
[389549414,1759709505425,-722.0,0.0001744,2]
[389549415,1759709505435,-2946.0,0.0001744,2]
[389549416,1759709505444,-500.0,0.0001744,2]
[389549417,1759709505453,-1591.0,0.0001744,2]
[389549418,1759709505463,-545.29608516,0.0001744,2]
[389549419,1759709505472,-503.96422038,0.0001744,2]
[389549420,1759709505481,-919.0,0.0001744,2]
[389549421,1759709505491,-659.0,0.0001744,2]
[389549422,1759709505501,-500.0,0.0001744,2]
[389549423,1759709505510,-12500.0,0.0001745,2]
[389549424,1759709505519,-15000.0,0.0001745,2]
[389549425,1759709505528,-22500.0,0.0001745,2]
[389549426,1759709505538,-700.0,0.0001747,2]
[389549427,1759709505547,-15000.0,0.0001748,2]
[389549428,1759709505557,-12500.0,0.00017488,2]
[389549429,1759709505566,-22500.0,0.00017488,2]
[389549430,1759709505575,-20000.0,0.000175,2]
[389549431,1759709505584,-150.0,0.000175,2]
[389549432,1759709505593,-307.15974455,0.00017501,13]
[389549433,1759709505603,-15000.0,0.0001751,2]
[389549434,1759709505612,-1622.84785925,0.00017512,2]
[389549435,1759709505621,-12500.0,0.00017525,2]
[389549436,1759709505630,-22500.0,0.00017525,2]
[389549437,1759709505640,-563.0,0.00017531,2]
[389549438,1759709505650,-500.0,0.00017531,2]
[389549439,1759709505659,-500.0,0.00017534,2]
[389549440,1759709505668,-1000.0,0.00017534,2]
[389549441,1759709505677,-15000.0,0.0001754,2]
[389549442,1759709505686,-12500.0,0.00017563,2]
[389549443,1759709505695,-22500.0,0.00017563,2]
[389549444,1759709505704,-15000.0,0.0001757,2]
[389549445,1759709505713,-12500.0,0.000176,2]
[389549446,1759709505722,-15000.0,0.000176,2]
[389549447,1759709505731,-22500.0,0.000176,2]
[389549448,1759709505740,-500.0,0.00017614,2]
[389549449,1759709505749,-1090.0,0.00017616,2]
[389549450,1759709505759,-15000.0,0.0001763,2]
[389549451,1759709505944,-12500.0,0.00017638,2]
[389549452,1759709505955,-22500.0,0.00017638,2]
[389549453,1759709505964,-15000.0,0.0001766,2]
[389549454,1759709505974,-3505.66,0.00017675,2]
[389549455,1759709505983,-22500.0,0.00017675,2]
[389549456,1759709505993,-621.0,0.0001768,2]
[389549457,1759709506002,-900.0,0.0001768,2]
[389549458,1759709506010,-6238.0,0.0001768,2]
[389549459,1759709506020,-4116.0,0.0001768,2]
[389549460,1759709506031,-15000.0,0.0001769,2]
[389549461,1759709506042,-7500.0,0.000177,2]
[389549462,1759709506052,-6817.14918469,0.000177,2]
[389549463,1759709506061,-403.0,0.000177,5]
[389549464,1759709506072,-2595.83802902,0.00017712,2]
[389549465,1759709506083,-3000.0,0.00017712,2]
[389549466,1759709506092,-2002.72408052,0.00017712,2]
[389549467,1759709506101,-22500.0,0.00017713,2]
[389549468,1759709506112,-736.0,0.00017713,2]
[389549469,1759709506121,-973.0,0.00017714,2]
[389549470,1759709506131,-722.0,0.00017714,2]
[389549471,1759709506141,-2946.0,0.00017714,2]
[389549472,1759709506150,-500.0,0.00017714,2]
[389549473,1759709506159,-1591.0,0.00017714,2]
[389549474,1759709506168,-919.0,0.00017714,2]
[389549475,1759709506178,-659.0,0.00017714,2]
[389549476,1759709506187,-500.0,0.00017714,2]
[389549477,1759709506196,-15000.0,0.0001772,2]
[389549478,1759709506206,-15000.0,0.0001775,2]
[389549479,1759709506215,-22500.0,0.0001775,2]
[389549480,1759709506224,-155.0,0.00017759,2]
[389549481,1759709506232,-22500.0,0.00017788,2]
[389549482,1759709506241,-5249.41,0.000178,2]
[389549483,1759709506251,-370.65517587,0.000178,7]
[389549484,1759709506260,-563.0,0.00017805,2]
[389549485,1759709506269,-587.90023509,0.00017805,2]
[389549486,1759709506276,-308.38516201,0.00017805,2]
[389549487,1759709506285,-500.0,0.00017808,2]
[389549488,1759709506294,-10000.0,0.00017808,4]
[389549489,1759709506303,-22500.0,0.00017825,2]
[389549490,1759709506313,-307.15974455,0.00017831,14]
[389549491,1759709506323,-152.0,0.00017834,8]
[389549492,1759709506332,-22500.0,0.00017863,2]
[389549493,1759709506341,-150.0,0.0001787,2]
[389549494,1759709506350,-150.0,0.0001787,2]
[389549495,1759709506359,-150.0,0.0001787,2]
[389549496,1759709506367,-150.0,0.0001787,2]
[389549497,1759709506376,-150.0,0.0001787,2]
[389549498,1759709506385,-150.0,0.0001787,2]
[389549499,1759709506394,-150.0,0.0001787,2]
[389549500,1759709506403,-3401.0,0.0001787,2]
[389549501,1759709506414,-2046.0,0.0001787,2]
[389549502,1759709506423,-1265.0,0.0001787,2]
[389549503,1759709506432,-1307.0,0.0001787,2]
[389549504,1759709506442,-603.0,0.0001787,2]
[389549505,1759709506452,-1586.0,0.0001787,2]
[389549506,1759709506461,-570.0,0.0001787,2]
[389549507,1759709506471,-815.0,0.0001787,2]
[389549508,1759709506480,-500.0,0.00017888,2]
[389549509,1759709506490,-2785.50452126,0.000179,2]
[389549510,1759709506503,-22500.0,0.000179,2]
[389549511,1759709506512,-150.4,0.00017936,2]
[389549512,1759709506520,-22500.0,0.00017938,2]
[389549513,1759709506529,-159.98,0.0001795,3]
[389549514,1759709506539,-22500.0,0.00017975,2]
[389549515,1759709506548,-973.0,0.00017988,2]
[389549516,1759709506558,-722.0,0.00017988,2]
[389549517,1759709506567,-2946.0,0.00017988,2]
[389549518,1759709506576,-500.0,0.00017988,2]
[389549519,1759709506584,-1591.0,0.00017988,2]
[389549520,1759709506593,-919.0,0.00017988,2]
[389549521,1759709506603,-659.0,0.00017988,2]
[389549522,1759709506612,-500.0,0.00017988,2]
[389549523,1759709506621,-300.0,0.00017999,2]
[389549524,1759709506630,-300.0,0.00017999,2]
[389549525,1759709506640,-300.0,0.00017999,2]